[Event "Valenciana Championship 2022"]
[Site "Alcossebre"]
[Date "2022.06.13"]
[Round "1.1"]
[White "Granero Roca, Antonio"]
[Black "Cruz Lledo, Pablo"]
[Result "0-1"]
[ECO "D58"]
[WhiteElo "2340"]
[BlackElo "2435"]
[Annotator "TA"]
[PlyCount "104"]
[EventDate "2022.06.13"]
[EventType "tourn"]
[EventCountry "ESP"]
[SourceTitle "playchess.com"]
[Source "ChessBase"]
[SourceQuality "1"]
[TimeControl "5400+30"]

{[%evp 21,104,0,9,0,29,24,55,17,12,10,8,22,26,17,16,0,9,5,34,6,4,-4,0,0,0,-23,-20,-54,-14,-132,-132,-131,-127,-129,-131,-246,-210,-270,-198,-198,-230,-230,-229,-238,-247,-233,-235,-261,-248,-243,-97,-706,-704,-786,-711,-700,-424,-434,-452,-447,-445,-454,-454,-452,-452,-463,-463,-463,-463,-451,-456,-452,-427,-441,-440,-386,-364,-629,-622,-524,-562,-530,-522,-1385,-1325]} 1. d4 {[%emt 0:00:06]} d5 {[%emt 0:00:27]} 2. c4 {[%emt 0:00:33]} e6 {[%emt 0:00:06]} 3. Nf3 {[%emt 0:02:00]} Nf6 {[%emt 0:00:14]} 4. Nc3 {[%emt 0:00:37]} Be7 {[%emt 0:00:07]} 5. Bg5 {[%emt 0:00:42]} h6 {[%emt 0:00:05]} 6. Bh4 {[%emt 0:00:33]} O-O {[%emt 0:00:06]} 7. e3 {[%emt 0:00:35]} b6 {[%emt 0:00:11]} 8. Bxf6 {[%emt 0:07:23]} Bxf6 {[%emt 0:00:12]} 9. cxd5 {[%emt 0:00:05]} exd5 {[%emt 0:00:05]} 10. b4 {[%emt 0:00:07]} c6 {[%emt 0:02:58]} 11. Be2 {[%emt 0:01:01]} Bb7 {[%emt 0:02:50]} 12. O-O {[%emt 0:01:56] D58: Queen's Gambit Declined: Tartakower Defence.} Be7 {[%emt 0:00:20]} 13. Qb3 {[%emt 0:01:36]} Qd6 {[%emt 1:29:19]} 14. Rab1 {[%emt 0:03:29] White is slightly better.} Nd7 {[%emt 0:00:00]} 15. a4 {[%emt 0:02:59]} a5 {[%emt 0:00:00]} 16. bxa5 {[%emt 0:04:29]} Rxa5 {[%emt 0:00:00] [#]} 17. Rfc1 $146 {[%emt 0:00:19]} ({Predecessor:} 17. Rfe1 Rfa8 18. Nd2 Qg6 19. Qd1 f5 20. Bd3 Ba6 21. Bc2 Qe6 22. h3 Rf8 23. Nb3 {1-0 (57) Antonov,N (2306)-Iordache,C (2327) ICCF email 2011}) 17... Bd8 {[%emt 0:00:00]} 18. Qc2 {[%emt 0:01:45]} Ba8 {[%emt 0:00:00]} 19. g3 {[%emt 0:02:36]} c5 {[%emt 0:00:00]} 20. Qf5 {[%emt 0:05:22]} (20. Nd2 $5 {[%cal Rd2b3]}) 20... c4 {[%emt 0:00:00]} 21. Bd1 {[%emt 0:03:47]} Bc6 {[%emt 0:00:00]} 22. Bc2 {[%emt 0:01:13][%csl Gc2][%cal Rf5h7]} g6 {[%emt 0:00:00]} 23. Qh3 {[%emt 0:00:23]} (23. Qf4 $5 {[%cal Rf4d6]} Qf6 24. Kg2 $11) 23... Kg7 {[%emt 0:00:00]} 24. Qg2 {[%emt 0:02:15]} Qa3 {[%emt 0:00:00]} 25. Nb5 {[%emt 0:05:18]} (25. Bd1 $1 $11 {remains equal.}) 25... Bxb5 $17 {[%emt 0:00:00]} 26. axb5 {[%emt 0:00:08] [#]} Rxb5 $3 {[%emt 0:00:00][%mdl 512]} 27. Ra1 {[%emt 0:04:47]} Qd6 {[%emt 0:00:00] Black is more active.} 28. Ba4 {[%emt 0:03:37]} (28. Qf1 $17 {keeps fighting.}) 28... Ra5 $19 {[%emt 0:00:00]} 29. Bxd7 {[%emt 0:00:10] Threatens to win with Qh3.} Qxd7 {[%emt 0:00:00]} 30. Rxa5 {[%emt 0:00:40]} bxa5 {[%emt 0:00:00]} 31. Ne5 {[%emt 0:00:08]} Qd6 {[%emt 0:00:00]} 32. e4 {[%emt 0:00:34]} Qa3 {[%emt 0:00:00]} 33. Qf1 {[%emt 0:03:05]} Bg5 {[%emt 0:00:00]} ({And not} 33... dxe4 34. Qxc4 Bf6 35. Nd7 $17) 34. Ra1 {[%emt 0:02:40] [#]} Qb2 {[%emt 0:00:00]} 35. exd5 {[%emt 0:02:01]} c3 {[%emt 0:00:00]} (35... Rc8 $19 36. Rxa5 c3) 36. f4 $2 {[%emt 0:02:19][%mdl 8192] [#] This costs White the game.} (36. Nc4 $17 Qc2 37. Re1) 36... c2 $1 {[%emt 0:00:00]} 37. Kh1 {[%emt 0:04:23]} (37. Rc1 Be7) 37... Bf6 {[%emt 0:00:00]} 38. Rc1 {[%emt 0:03:09]} Qxd4 {[%emt 0:00:00]} 39. Rxc2 {[%emt 0:01:03]} Bxe5 {[%emt 0:00:00]} 40. fxe5 {[%emt 0:00:26]} Qxd5+ {[%emt 0:00:00][%mdl 4096] Endgame KQR-KQR} 41. Kg1 {[%emt 0:00:47]} Qxe5 {[%emt 0:00:00]} 42. Qc4 {[%emt 0:00:24]} Rd8 {[%emt 0:00:00] aiming for ...Qe1+.} 43. Rf2 {[%emt 0:01:28]} Rd1+ {[%emt 0:00:00]} 44. Kg2 {[%emt 0:00:05]} Qd5+ {[%emt 0:00:00]} 45. Qxd5 {[%emt 0:00:08]} Rxd5 {[%emt 0:00:00] KR-KR} 46. Ra2 {[%emt 0:00:07]} Kf6 {[%emt 0:00:00]} 47. Kf3 {[%emt 0:00:05]} Ke5 {[%emt 0:00:03]} 48. Ke3 {[%emt 0:00:06]} Kd6 {[%emt 0:00:03]} 49. Rb2 $2 {[%emt 0:00:31]} (49. Rf2) 49... Kc6 {[%emt 0:00:30] Black is clearly winning.} 50. Rb8 {[%emt 0:00:26]} a4 {[%emt 0:01:13]} 51. Ra8 {[%emt 0:00:36] Prevents Ra5.} Kb5 {[%emt 0:00:04] ...Kb4 is the strong threat.} 52. Ra7 {[%emt 0:00:11]} Kb4 {[%emt 0:00:20] Weighted Error Value: White=0.50/Black=0.19 (very precise)} 0-1

[Event "Valenciana Championship 2022"]
[Site "Alcossebre"]
[Date "2022.06.13"]
[Round "1.2"]
[White "Jordan Martinez, David"]
[Black "Macias Pino, Diego"]
[Result "0-1"]
[ECO "D02"]
[WhiteElo "2154"]
[BlackElo "2365"]
[Annotator "TA"]
[PlyCount "48"]
[EventDate "2022.06.13"]
[EventType "tourn"]
[EventCountry "ESP"]
[SourceTitle "playchess.com"]
[Source "ChessBase"]
[SourceQuality "1"]
[TimeControl "5400+30"]

{[%evp 9,48,9,9,9,44,-21,-22,-27,-30,-45,-40,-58,-56,-50,-37,-87,-50,-42,-14,-16,0,10,0,5,19,0,80,81,84,22,24,24,23,23,24,20,20,22,29,-193,-172]} 1. d4 {[%emt 0:00:03]} Nf6 {[%emt 0:00:12]} 2. Nf3 {[%emt 0:00:13]} d5 {[%emt 0:00:17]} 3. g3 {[%emt 0:00:53]} c5 {[%emt 0:00:33]} 4. Bg2 {[%emt 0:00:20]} cxd4 {[%emt 0:00:06]} 5. O-O {[%emt 0:00:17]} h6 {[%emt 0:02:42]} 6. b3 {[%emt 0:01:37] D02: 1 d4 d5 2 Nf3 sidelines, including 2...Nf6 3 g3 and 2...Nf6 3 Bf4.} Bg4 {[%emt 0:00:58]} 7. Nxd4 {[%emt 0:05:02]} ({White should play} 7. Ne5 $14) 7... e5 $11 {[%emt 0:01:46]} 8. Nf3 {[%emt 0:10:11] The position is equal.} Nc6 {[%emt 0:02:54]} 9. Bb2 {[%emt 0:01:52]} Bd6 {[%emt 0:03:31] [#]} 10. h3 $146 {[%emt 0:07:50]} ({Predecessor:} 10. Nbd2 O-O 11. c4 d4 12. Qc2 Rc8 13. a3 Qd7 14. Ne4 Nxe4 15. Qxe4 Bf5 16. Qd5 {0-1 (31) Gil,L (1836)-Vilaisarn,A (2205) Bastia 2007}) 10... Be6 {[%emt 0:01:45]} 11. e3 {[%emt 0:02:30]} Qd7 {[%emt 0:07:38]} 12. Kh2 {[%emt 0:00:15]} (12. c4 $1 $15) 12... O-O {[%emt 0:11:30] Black is more active.} (12... e4 {is more complex.} 13. Nd4 h5 14. h4 Bg4) 13. Nbd2 {[%emt 0:00:41]} Qc7 {[%emt 0:07:35]} 14. c4 {[%emt 0:13:56]} dxc4 {[%emt 0:03:45]} 15. Nxc4 {[%emt 0:01:22]} Bxc4 {[%emt 0:02:18]} 16. bxc4 {[%emt 0:00:06]} Rfd8 {[%emt 0:01:01][%cal Od6a3]} 17. Qe2 {[%emt 0:00:19]} e4 {[%emt 0:05:33]} (17... Rac8 $11 {remains equal.}) 18. Nd2 $16 {[%emt 0:07:34] [#] Black must now prevent Bxf6.} Ne5 {[%emt 0:08:33][%cal Bc6e5,Be5c4,Bc4b6][%mdl 32]} 19. Nxe4 {[%emt 0:16:14]} ({Better is} 19. Bd4 $16) 19... Nxe4 $11 {[%emt 0:00:13]} 20. Bxe4 {[%emt 0:00:14] White wants to play Bd5.} Qxc4 {[%emt 0:02:22]} 21. Qxc4 {[%emt 0:03:15]} Nxc4 {[%emt 0:00:01]} 22. Bc3 {[%emt 0:00:38]} Rac8 {[%emt 0:04:27][%cal Oc4e3]} 23. Bxb7 {[%emt 0:05:55] A strong pair of Bishops.} Rc7 {[%emt 0:02:20]} 24. Rab1 {[%emt 0:14:05] [#]} (24. Ba6 $11 {and White has nothing to worry.}) 24... Nb6 {[%emt 0:00:25] Weighted Error Value: White=0.42/Black=0.18 (very precise)} 0-1

[Event "Valenciana Championship 2022"]
[Site "Alcossebre"]
[Date "2022.06.13"]
[Round "1.3"]
[White "Valmana Canto, Jaime"]
[Black "Luque Saiz, Andres"]
[Result "1-0"]
[ECO "B01"]
[WhiteElo "2392"]
[BlackElo "2273"]
[Annotator "TA"]
[PlyCount "47"]
[EventDate "2022.06.13"]
[EventType "tourn"]
[EventCountry "ESP"]
[SourceTitle "playchess.com"]
[Source "ChessBase"]
[SourceQuality "1"]
[TimeControl "5400+30"]

{[%evp 19,47,27,47,44,51,48,60,74,62,58,50,35,113,84,124,119,112,72,211,230,366,395,408,379,641,603,970,952,29998,29999]} 1. e4 {[%emt 0:00:45]} c6 {[%emt 0:00:09]} 2. Nf3 {[%emt 0:00:11]} d5 {[%emt 0:00:22]} 3. Nc3 {[%emt 0:00:08]} Bg4 {[%emt 0:00:20]} 4. d4 {[%emt 0:00:26]} e6 {[%emt 0:02:24]} 5. Bd3 {[%emt 0:00:54]} Nf6 {[%emt 0:06:05]} 6. O-O {[%emt 0:03:04]} dxe4 {[%emt 0:05:07]} 7. Nxe4 {[%emt 0:00:10]} Nbd7 {[%emt 0:00:46]} 8. Ng3 {[%emt 0:20:59]} Qc7 {[%emt 0:14:37]} 9. h3 {[%emt 0:01:12]} Bxf3 {[%emt 0:00:54]} 10. Qxf3 {[%emt 0:00:07]} Bd6 {[%emt 0:00:03]} 11. c3 {[%emt 0:05:12] B01: Scandinavian Defence.} h6 {[%emt 0:09:23]} 12. Re1 {[%emt 0:05:04][%cal Bf1e1,Be1e4,Be4e2,Be2e6,Be6e8][%mdl 32] [#]} O-O-O $146 {[%emt 0:03:55]} ({Predecessor:} 12... g5 13. Nf5 Bh2+ 14. Kh1 O-O-O 15. Ng3 g4 16. Qf4 Bxg3 {0-1 (16) Kim,I (1842)-Gilbert,J (2151) Belfort 2005}) 13. b4 {[%emt 0:13:23][%cal Bb2b4,Bb4b5][%mdl 32] White is slightly better.} g5 {[%emt 0:01:58]} 14. Ne4 {[%emt 0:00:29] White is more active.} Nxe4 {[%emt 0:10:20]} 15. Rxe4 {[%emt 0:00:08]} (15. Bxe4 $5 {[%cal Rf3f7]} Rhf8 16. a4 $14) 15... Rdf8 {[%emt 0:07:50]} (15... Nb6 $14) 16. b5 $16 {[%emt 0:08:09]} c5 {[%emt 0:01:24] [#]} 17. a4 $1 {[%emt 0:02:56]} Kb8 {[%emt 0:08:02]} 18. Re2 {[%emt 0:03:49]} f5 {[%emt 0:08:40] Loses the game.} (18... Bf4 $16 {keeps fighting.}) 19. Rxe6 $18 {[%emt 0:00:27]} g4 {[%emt 0:00:14]} (19... Re8 $142) 20. Qd5 {[%emt 0:02:46]} ({Resist} 20. hxg4 fxg4 21. Qd5 (21. Qxg4 cxd4 22. Rxd6 Qxd6 $16) 21... Rf6 $18) 20... Bh2+ {[%emt 0:05:02]} 21. Kh1 {[%emt 0:00:17]} Rd8 $2 {[%emt 0:01:23]} (21... cxd4 22. cxd4 (22. Bxh6 Rd8 $14) 22... Ka8) 22. g3 {[%emt 0:01:46]} Nf8 {[%emt 0:00:59] [#]} 23. Bf4 $1 {[%emt 0:00:08][%cal Rd5d8]} Rxd5 {[%emt 0:12:03]} (23... Nxe6 24. Bxc7+) 24. Re8+ {[%emt 0:00:09] Weighted Error Value: White=0.03 (flawless) /Black=1.03} 1-0

[Event "Valenciana Championship 2022"]
[Site "Alcossebre"]
[Date "2022.06.13"]
[Round "1.4"]
[White "Carbonell Sancho, Marc"]
[Black "Navarro Molina, Carmelo Jose"]
[Result "1-0"]
[ECO "B20"]
[WhiteElo "2269"]
[BlackElo "1834"]
[Annotator "NA RC"]
[PlyCount "103"]
[EventDate "2022.06.13"]
[EventType "tourn"]
[EventCountry "ESP"]
[SourceTitle "playchess.com"]
[Source "ChessBase"]
[SourceQuality "1"]
[TimeControl "5400+30"]

1. e4 {[%emt 0:00:30]} c5 {[%emt 0:00:15]} 2. b3 {[%emt 0:00:00]} b6 {[%emt 0:00:18]} 3. Nc3 {[%emt 0:00:16]} Bb7 {[%emt 0:00:09]} 4. Bb2 {[%emt 0:00:07]} Nc6 {[%emt 0:00:24]} 5. Nf3 {[%emt 0:00:06]} d6 {[%emt 0:00:46]} 6. d4 {[%emt 0:00:11]} Nf6 {[%emt 0:07:25]} 7. d5 {[%emt 0:04:58]} Nb8 {[%emt 0:00:58]} 8. Bc4 {[%emt 0:00:07]} a6 {[%emt 0:07:16]} 9. a4 {[%emt 0:00:22]} g6 {[%emt 0:00:15]} 10. O-O {[%emt 0:00:06]} Bg7 {[%emt 0:00:02]} 11. Nd2 {[%emt 0:01:03]} O-O {[%emt 0:00:22]} 12. Qe2 {[%emt 0:00:43]} Nbd7 {[%emt 0:00:53]} 13. f4 {[%emt 0:00:06]} Qc7 {[%emt 0:02:29]} 14. Rae1 {[%emt 0:03:24]} Kh8 {[%emt 0:07:35]} 15. Nf3 {[%emt 0:01:38]} Bc8 {[%emt 0:04:28]} 16. e5 {[%emt 0:07:04]} dxe5 {[%emt 0:02:21]} 17. fxe5 {[%emt 0:00:05]} Ng4 {[%emt 0:05:17]} 18. Nd1 {[%emt 0:06:16]} f6 {[%emt 0:07:43]} 19. e6 {[%emt 0:03:49]} Nde5 {[%emt 0:02:52]} 20. Nxe5 {[%emt 1:09:39]} Nxe5 {[%emt 0:00:30]} 21. Bxe5 {[%emt 0:00:00]} Qxe5 {[%emt 0:04:27]} 22. Qxe5 {[%emt 0:00:00]} fxe5 {[%emt 0:00:05]} 23. Rxf8+ {[%emt 0:00:00]} Bxf8 {[%emt 0:00:05]} 24. Bd3 {[%emt 0:00:00]} Bb7 {[%emt 0:03:14]} 25. c4 {[%emt 0:00:00]} Bg7 {[%emt 0:00:54]} 26. Nc3 {[%emt 0:00:00]} Bf6 {[%emt 0:01:11]} 27. Kf2 {[%emt 0:00:00]} Kg7 {[%emt 0:00:35]} 28. Ne4 {[%emt 0:00:00]} Rc8 {[%emt 0:02:04]} 29. Ke3 {[%emt 0:00:00]} Rd8 {[%emt 0:02:19]} 30. a5 {[%emt 0:00:00]} bxa5 {[%emt 0:02:26]} 31. Nxc5 {[%emt 0:00:00]} Bc8 {[%emt 0:00:02]} 32. Be4 {[%emt 0:00:00]} Bg5+ {[%emt 0:03:05]} 33. Ke2 {[%emt 0:00:00]} Rd6 {[%emt 0:01:10]} 34. Ra1 {[%emt 0:00:00]} Rb6 {[%emt 0:00:11]} 35. Rxa5 {[%emt 0:00:00]} Bc1 {[%emt 0:00:48]} 36. Nd3 {[%emt 0:00:00]} Bg5 {[%emt 0:00:13]} 37. b4 {[%emt 0:00:00]} Kf8 {[%emt 0:00:50]} 38. Rc5 {[%emt 0:00:00]} Rb8 {[%emt 0:00:49]} 39. g3 {[%emt 0:00:00]} Ke8 {[%emt 0:00:23]} 40. h4 {[%emt 0:00:00]} Bh6 {[%emt 0:00:17]} 41. h5 {[%emt 0:00:00]} gxh5 {[%emt 0:03:04]} 42. Bxh7 {[%emt 0:00:00]} Kf8 {[%emt 0:00:28]} 43. Nxe5 {[%emt 0:00:00]} Kg7 {[%emt 0:00:22]} 44. Bd3 {[%emt 0:00:00]} Kf6 {[%emt 0:00:59]} 45. Nc6 {[%emt 0:00:00]} Ra8 {[%emt 0:03:48]} 46. Nd4 {[%emt 0:00:00]} Bc1 {[%emt 0:00:59]} 47. Rc7 {[%emt 0:00:00]} Ba3 {[%emt 0:01:32]} 48. Nc6 {[%emt 0:00:00]} a5 {[%emt 0:00:07]} 49. Rxe7 {[%emt 0:00:00]} Bxb4 {[%emt 0:01:22]} 50. Rf7+ {[%emt 0:00:00]} Kg5 {[%emt 0:00:16]} 51. Rg7+ {[%emt 0:00:00]} Kf6 {[%emt 0:00:44]} 52. Rg6# {[%emt 0:00:00]} 1-0

[Event "Valenciana Championship 2022"]
[Site "Alcossebre"]
[Date "2022.06.13"]
[Round "2.1"]
[White "Cruz Lledo, Pablo"]
[Black "Navarro Molina, Carmelo Jose"]
[Result "1-0"]
[ECO "D04"]
[WhiteElo "2435"]
[BlackElo "1834"]
[Annotator "TA"]
[PlyCount "115"]
[EventDate "2022.06.13"]
[EventType "tourn"]
[EventCountry "ESP"]
[SourceTitle "playchess.com"]
[Source "ChessBase"]
[SourceQuality "1"]
[TimeControl "5400+30"]

{[%evp 9,115,14,20,19,19,12,11,11,23,21,21,18,39,35,31,33,39,39,39,39,39,39,39,39,45,47,53,49,64,62,62,54,62,64,58,57,62,47,58,82,100,71,78,91,187,195,192,188,197,195,187,195,195,187,191,178,178,191,189,170,198,194,200,206,222,218,224,214,281,251,502,270,393,195,344,195,200,200,200,185,276,282,284,284,284,277,277,273,362,362,362,354,466,443,485,469,443,422,1160,1092,953,941,12843,12844,12844,12844,12838,1676]} 1. d4 {[%emt 0:02:12]} d5 {[%emt 0:00:04]} 2. Nf3 {[%emt 0:00:10]} Nf6 {[%emt 0:00:07]} 3. e3 {[%emt 0:00:10]} Bg4 {[%emt 0:00:19]} 4. Be2 {[%emt 0:02:11]} Nbd7 {[%emt 0:00:47]} 5. h3 {[%emt 0:00:29]} Bxf3 {[%emt 0:01:01]} 6. Bxf3 {[%emt 0:00:06][%cal Oc2c4] D04: Colle System.} c6 {[%emt 0:00:03]} 7. O-O {[%emt 0:01:14][%cal Oc2c4]} e5 {[%emt 0:00:55] [#]} 8. b3 $146 {[%emt 0:00:21] The position is equal.} ({Predecessor:} 8. dxe5 Nxe5 9. Be2 Bd6 10. f4 Ng6 11. Qe1 Ne4 12. Nd2 Nf6 13. b3 Bc5 14. Nf3 Nxf4 {0-1 (38) Ducharme,S (905)-Schalkwijk,P (1382) LSS email 2011}) 8... e4 {[%emt 0:00:46]} 9. Be2 {[%emt 0:00:01]} Bd6 {[%emt 0:01:28]} 10. Ba3 {[%emt 0:00:17]} Qe7 {[%emt 0:00:56]} 11. Bxd6 {[%emt 0:00:38]} Qxd6 {[%emt 0:00:02]} 12. c4 {[%emt 0:00:09]} O-O {[%emt 0:00:28]} 13. Nc3 {[%emt 0:00:11]} Rfe8 {[%emt 0:04:40]} 14. Qc2 {[%emt 0:00:24]} Qe7 {[%emt 0:03:11]} 15. Rfc1 {[%emt 0:01:26][%cal Bf1c1,Bc1c2,Bc2c5][%mdl 32]} Rac8 {[%emt 0:01:53]} 16. Qb2 {[%emt 0:00:06]} h6 {[%emt 0:03:22]} 17. Rc2 {[%emt 0:00:06]} a6 {[%emt 0:07:14]} 18. Rac1 {[%emt 0:00:08]} Qd6 {[%emt 0:02:35]} 19. cxd5 {[%emt 0:03:05]} Nxd5 {[%emt 0:02:05]} 20. Nxd5 {[%emt 0:00:42]} Qxd5 {[%emt 0:00:53]} 21. b4 {[%emt 0:00:59]} Nb6 {[%emt 0:04:28]} 22. Rc5 {[%emt 0:00:20]} Qd8 {[%emt 0:00:21]} 23. Qb3 {[%emt 0:00:29] Prevents Na4.} Qe7 {[%emt 0:04:55]} 24. a4 {[%emt 0:01:38] White now steadily converts the win.} Nd7 {[%emt 0:11:57]} 25. R5c2 {[%emt 0:00:41] White is more active.} Nb6 {[%emt 0:01:14]} 26. Bg4 {[%emt 0:02:40]} Ra8 {[%emt 0:09:30] [#]} (26... Rb8 $16) 27. b5 $1 $18 {[%emt 0:00:52]} axb5 {[%emt 0:00:09]} 28. axb5 {[%emt 0:00:02]} Qa3 {[%emt 0:16:09]} 29. Qxa3 {[%emt 0:01:12]} Rxa3 {[%emt 0:01:16]} 30. bxc6 {[%emt 0:00:02]} bxc6 {[%emt 0:00:09]} 31. Rxc6 {[%emt 0:00:09]} Nd5 {[%emt 0:00:20]} 32. Rd6 {[%emt 0:01:42]} Nf6 {[%emt 0:01:23]} 33. Be2 {[%emt 0:00:09]} Ra2 {[%emt 0:02:16]} 34. Bc4 {[%emt 0:00:08]} Ra7 {[%emt 0:00:31]} 35. Rc6 {[%emt 0:00:36] Against Rc7} Kf8 {[%emt 0:00:41]} 36. Rb1 {[%emt 0:02:39]} Rd8 {[%emt 0:01:22]} 37. Kh2 {[%emt 0:01:34]} Ne8 {[%emt 0:02:19]} 38. g4 {[%emt 0:04:19]} Rd6 {[%emt 0:02:28]} 39. Rc5 {[%emt 0:02:01] [#] Black must now prevent Rb8.} Rf6 $2 {[%emt 0:01:58]} (39... Rd8 {keeps fighting.} 40. Kg3 Ra3) 40. Rb2 {[%emt 0:01:52] Rb8 is the strong threat.} g5 {[%emt 0:01:03]} (40... Nd6 {was worth a try.} 41. Re5 Rb7) 41. Bf1 {[%emt 0:01:31]} (41. Rb8 $142) 41... Re7 {[%emt 0:02:17]} (41... Nd6 $142 42. Kg2 Ra1) 42. Bg2 {[%emt 0:00:20]} (42. Rb8 $142) 42... Kg7 {[%emt 0:00:24]} 43. Kg3 {[%emt 0:00:22]} Rd6 {[%emt 0:00:56]} 44. Rbb5 {[%emt 0:01:07]} Nf6 {[%emt 0:02:12]} (44... Rde6 $142 45. Ra5 Nd6) 45. Re5 {[%emt 0:00:40]} Rde6 {[%emt 0:00:24]} 46. Rxe6 {[%emt 0:00:57]} Rxe6 {[%emt 0:00:10][%mdl 4096] Endgame KRB-KRN} 47. h4 {[%emt 0:01:26]} gxh4+ {[%emt 0:00:30]} 48. Kxh4 {[%emt 0:00:04]} Nd7 {[%emt 0:00:38]} 49. Kg3 {[%emt 0:00:30]} Nf6 {[%emt 0:01:17]} 50. Kf4 {[%emt 0:00:56]} h5 {[%emt 0:00:27]} 51. gxh5 {[%emt 0:01:50] White is clearly winning.} Kh6 {[%emt 0:00:13]} 52. Bh3 {[%emt 0:00:31]} Ra6 {[%emt 0:00:48]} 53. Bg4 {[%emt 0:00:42]} Ra2 {[%emt 0:00:10]} (53... Kg7 $142 54. f3 exf3 55. Bxf3 Rd6) 54. Rb6 {[%emt 0:04:57]} Rxf2+ {[%emt 0:00:19]} 55. Kg3 {[%emt 0:00:06]} Kg5 {[%emt 0:01:45]} 56. Rb5+ {[%emt 0:01:02]} Kh6 {[%emt 0:00:07]} 57. Kxf2 {[%emt 0:00:10]} Nxg4+ {[%emt 0:00:32]} 58. Ke2 {[%emt 0:00:07] Weighted Error Value: White=0.15 (very precise) /Black=0.28 (precise)} (58. Kg3 $142 Nxe3 59. d5) 1-0

[Event "Valenciana Championship 2022"]
[Site "Alcossebre"]
[Date "2022.06.13"]
[Round "2.2"]
[White "Luque Saiz, Andres"]
[Black "Carbonell Sancho, Marc"]
[Result "1/2-1/2"]
[ECO "B70"]
[WhiteElo "2273"]
[BlackElo "2269"]
[Annotator "NA RC"]
[PlyCount "119"]
[EventDate "2022.06.13"]
[EventType "tourn"]
[EventCountry "ESP"]
[SourceTitle "playchess.com"]
[Source "ChessBase"]
[SourceQuality "1"]
[TimeControl "5400+30"]

1. e4 {[%emt 0:00:02]} c5 {[%emt 0:09:23]} 2. Nf3 {[%emt 0:00:13]} a6 {[%emt 0:00:04]} 3. Nc3 {[%emt 0:08:19]} d6 {[%emt 0:02:15]} 4. d4 {[%emt 0:00:27]} cxd4 {[%emt 0:00:05]} 5. Nxd4 {[%emt 0:00:07]} Nf6 {[%emt 0:00:05]} 6. a4 {[%emt 0:00:06]} g6 {[%emt 0:00:13]} 7. Bc4 {[%emt 0:01:15]} Bg7 {[%emt 0:00:05]} 8. O-O {[%emt 0:00:51]} O-O {[%emt 0:00:06]} 9. Re1 {[%emt 0:07:55]} Qc7 {[%emt 0:01:04]} 10. Bf1 {[%emt 0:00:56]} e6 {[%emt 0:01:08]} 11. a5 {[%emt 0:02:40]} Nbd7 {[%emt 0:05:00]} 12. Nf3 {[%emt 0:11:50]} b5 {[%emt 0:13:39]} 13. axb6 {[%emt 0:06:27]} Nxb6 {[%emt 0:00:25]} 14. e5 {[%emt 0:01:28]} dxe5 {[%emt 0:00:09]} 15. Nxe5 {[%emt 0:00:07]} Bb7 {[%emt 0:00:21]} 16. Be3 {[%emt 0:10:07]} Rfd8 {[%emt 0:15:08]} 17. Qe2 {[%emt 0:02:59]} Rac8 {[%emt 0:10:24]} 18. Ra3 {[%emt 0:14:37]} Nfd5 {[%emt 0:03:57]} 19. Bd4 {[%emt 0:10:19]} Nb4 {[%emt 0:02:27]} 20. Rd1 {[%emt 0:00:58]} Rxd4 {[%emt 0:12:50]} 21. Rxd4 {[%emt 0:00:16]} Bxe5 {[%emt 0:00:46]} 22. Rxb4 {[%emt 0:00:59]} Bxh2+ {[%emt 0:00:06]} 23. Kh1 {[%emt 0:00:04]} Bd6 {[%emt 0:00:09]} 24. Rab3 {[%emt 0:01:17]} Bxb4 {[%emt 0:01:21]} 25. Rxb4 {[%emt 0:00:03]} Qc5 {[%emt 0:02:00]} 26. Rh4 {[%emt 0:01:51]} h5 {[%emt 0:01:56]} 27. Qd2 {[%emt 0:04:39]} a5 {[%emt 0:02:31]} 28. Bd3 {[%emt 0:01:41]} Qe5 {[%emt 0:04:21]} 29. Kg1 {[%emt 0:05:53]} Nd5 {[%emt 0:01:58]} 30. Be4 {[%emt 0:02:48]} Nxc3 {[%emt 0:03:33]} 31. Bxb7 {[%emt 0:00:59]} Rb8 {[%emt 0:03:59]} 32. Rc4 {[%emt 0:03:45]} Ne2+ {[%emt 0:02:26]} 33. Kf1 {[%emt 0:00:17]} Rxb7 {[%emt 0:00:43]} 34. Rc8+ {[%emt 0:00:15]} Kg7 {[%emt 0:01:08]} 35. Qxe2 {[%emt 0:00:44]} Qxe2+ {[%emt 0:00:05]} 36. Kxe2 {[%emt 0:00:02]} Rxb2 {[%emt 0:00:04]} 37. Kd3 {[%emt 0:00:09]} Rb4 {[%emt 0:00:31]} 38. Ra8 {[%emt 0:00:44]} a4 {[%emt 0:00:27]} 39. c4 {[%emt 0:00:17]} h4 {[%emt 0:02:15]} 40. c5 {[%emt 0:00:59]} Rb7 {[%emt 0:00:16]} 41. Rxa4 {[%emt 0:00:49]} g5 {[%emt 0:00:13]} 42. Kd4 {[%emt 0:00:30]} Rc7 {[%emt 0:01:09]} 43. Rc4 {[%emt 0:00:39]} Rc6 {[%emt 0:00:04]} 44. Kc3 {[%emt 0:00:28]} Kf6 {[%emt 0:00:37]} 45. Kb4 {[%emt 0:00:16]} Ke5 {[%emt 0:00:28]} 46. Kb5 {[%emt 0:00:34]} Kd5 {[%emt 0:00:41]} 47. Rc2 {[%emt 0:00:45]} Rc8 {[%emt 0:00:02]} 48. Rd2+ {[%emt 0:00:03]} Ke4 {[%emt 0:00:05]} 49. Kb6 {[%emt 0:00:36]} g4 {[%emt 0:00:21]} 50. c6 {[%emt 0:00:36]} h3 {[%emt 0:01:27]} 51. gxh3 {[%emt 0:00:23]} gxh3 {[%emt 0:00:02]} 52. Kb7 {[%emt 0:00:13]} Rh8 {[%emt 0:00:49]} 53. c7 {[%emt 0:01:02]} f5 {[%emt 0:00:27]} 54. Rd8 {[%emt 0:00:38]} Rh7 {[%emt 0:00:01]} 55. Kb8 {[%emt 0:00:23]} Rxc7 {[%emt 0:00:07]} 56. Kxc7 {[%emt 0:00:02]} Kf3 {[%emt 0:00:12]} 57. Rh8 {[%emt 0:00:55]} Kxf2 {[%emt 0:01:42]} 58. Rxh3 {[%emt 0:00:11]} f4 {[%emt 0:00:08]} 59. Kd6 {[%emt 0:00:12]} f3 {[%emt 0:00:10]} 60. Rxf3+ {[%emt 0:01:00]} 1/2-1/2